Workbook

Sheet Diurno
A1: Ministério da Integração Nacional - M I
A2: Companhia de Desenvolvimento dos Vales do São Francisco e do Parnaíba
A3: 3ª Superintendência Regional
A4: PLANILHA DE CUSTOS E FORMAÇÃO DE PREÇOS
A5: ANEXO I DO EDITAL ..... / 2015
A6: PORTARIA Nº 07 DE 09/03/2011 - SLTI/MPOG
A8: N° Processo Administrativo
A9: Licitação N° | C9: PE Nº.
A10: Data: ______/______/_______ | C10: Hora: _____:_____ horas
A13: DISCRIMINAÇÃO DOS SERVIÇOS (dados referentes à contratação)
A14: A | B14: Data de apresentação da proposta (dia/mês/ano)
A15: B | B15: Município/UF | E15: Petrolina-PE
A16: C | B16: Ano Acordo, Convenção ou Sentença Normativa em Dissídio Coletivo | E16: 2015
A17: D | B17: Nº de meses de execução contratual | E17: 12 meses
A20: IDENTIFICAÇÃO DO SERVIÇO
A21: Tipo de serviço | C21: Unidade de Medida | D21: Quantidade total a contratar (em função da unidade de medida)
A23: Vigilância Patrimonial | C23: Posto de Trabalho | D23: 1
A29: PORTARIA Nº 07 DE 09/03/2011 - SLTI/MPOG
A30: MÃO-DE-OBRA VINCULADA À EXECUÇÃO CONTRATUAL
A32: Descrição:
A33: Prestação dos serviços de VIGILÂNCIA ARMADA, DIURNO, utilizando 1 (um) posto de trabalho de 12 horas, composto por 2 (duas) pessoas do sexo masculino, de segunda a domingo, das 7 às 19 horas. (jornada 12x36)
A34: Dados complementares para composição dos custos referente à mão de obra
A35: 1 | B35: Prestação de serviços no prédio Sede da CODEVASF, CS-03 e Estação de Piscicultura | D35: Jatobá/PE | E35: Petrolina/PE
A36: 2 | B36: Ano Acordo, Convenção ou Sentença Normativa em Dissídio Coletivo | D36: 2012 | E36: 2015
A37: 3 | B37: Tipo de serviço | D37: Coordenação | E37: Vigilância Patrimonial
A38: 4 | B38: Nº de meses de execução contratual | D38: 12 | E38: 12
A39: 5 | B39: Categoria profissional vinculada à execução contratual (STEALMOAIC-PE) | E39: Vigilância
A40: 6 | B40: Data-base da categoria (dia/mês/ano) | E40: 2015-01-01
A41: * Utilizada como base para o reajuste da categoria profissional previsto nos Acordos, Convenções ou Sentenças Normativas em Dissídios Coletivos.
A43: MÓDULO 1: COMPOSIÇÃO DA REMUNERAÇÃO
A44: 1 | B44: Composição da Remuneração | E44: Valor (R$)
A45: A | B45: Salário Base - CCT 2015 - cláusula 3ª | C45: 925.56 | D45: 2 | E45: =C45*D45 -> 1851.12 | J45: =(C45+C48)/220 -> 5.47
A46: B | B46: Adicional Noturno - CCT 2013 - cláusula 3ª
A47: C | B47: H. Not. Reduzida - CCT 2013 - cláusula 3ª
A48: D | B48: Ad. Pericul - CCT 2015 - cláusula 3ª | C48: =30%*C45 -> 277.67 | D48: 2 | E48: =C48*D48 -> 555.34
A49: E | B49: Adic. Intrajornada - CCT 2015 - cláusula 3ª | C49: =5.47*1.5*15 -> 123.08 | D49: 2 | E49: =C49*D49 -> 246.16 | I49: (VALOR H.NORMAL + 50%) x 15 DIAS = ( H NORMAL + 50%) x 15 dias por vigilante
A50: F | B50: Repercussão DSR s/Adic. Notur CCT 2013
A51: H | B51: Outros (especificar)
A52: TOTAL DA REMUNERAÇÃO | E52: =SUM(E45:E51) -> 2652.62
A54: MÓDULO 2: BENEFÍCIOS MENSAIS E DIÁRIOS
A55: 2 | B55: Benefícios Mensais e Diários | E55: Valor (R$)
A56: A | B56: Vale Transporte (Deduzido 6% parte empregado) = (R$ 3,20 (valor tarifa)*2*15 (dias trab.) - 6% do sal. Base)*2 vigilantes | E56: =(3.2*4*15)-(E45*6%) -> 80.93
A57: B | B57: Auxílio alimentação (Vales, cesta básica, etc.) CCT 2015 - cláusula 12ª, § 2° | E57: =(16 - 1)*30 -> 450
A58: C | B58: Assistência médica e familiar CCT 2015 - cláusula 14ª | E58: =34.18*2 -> 68.36 | I58: R$ 34,18 por cada empregado, por mês, tendo em vista a extensão do benefício as esposas e filhos menores
A59: D | B59: Auxílio creche | E59: 0
A60: E | B60: Seguro de vida, invalidez e funeral | E60: =((78*C45*0.0078%) + (3000*0.00955%))*2 -> 11.84 | I60: ((26 x Sal Normativo) + (52 x Sal normativo)) x 0,0078% + (3.000,00) x 0,00955% por vigilante
A61: F | B61: Outros (especificar) | E61: 0
A62: TOTAL DE BENEFÍCIOS MENSAIS E DIÁRIOS | E62: =SUM(E56:E61) -> 611.13
A63: Nota: o valor informado deverá ser o custo real do insumo (descontado o valor eventualmente pago pelo empregado).
A65: MÓDULO 3: INSUMOS DIVERSOS
A66: 3 | B66: Insumos Diversos | E66: Valor (R$)
A67: A | B67: Uniformes | D67: =[1]Plan2!$C$36 -> 28.98 | E67: =D67*2 -> 57.96
A68: B | B68: Materiais | E68: 0
A69: C | B69: Equipamentos | D69: =[1]Plan2!$H$30 -> 43.92 | E69: =D69*2 -> 87.84
A70: E | B70: Outros (especificar) | E70: 0
A71: TOTAL DE INSUMOS DIVERSOS | E71: =SUM(E67:E70) -> 145.8
A72: Nota: Valores mensais por empregado.
A74: MÓDULO 4: ENCARGOS SOCIAIS E TRABALHISTAS
A75: GRUPO "A"
A76: 4.1 | B76: GRUPO "A" | D76: % | E76: Valor (R$)
A77: A | B77: INSS (Art. 22 inciso I da Lei 8.212/91) | D77: 0.2 | E77: =D77*E52 -> 530.52
A78: B | B78: FGTS (Art. 15 da Lei 8030/90 art. 7° inciso III CF/88) | D78: 0.08 | E78: =D78*E52 -> 212.21
A79: C | B79: Riscos Ambientais do Trabalho - RAT x FAP - (Decreto 3.048/1999, Anexo V e Decreto 6.957/2009) | D79: 0.03 | E79: =D79*E52 -> 79.58
A80: D | B80: Salário Educação (Art. 3° inciso I Decreto 87.043/) | D80: 0.025 | E80: =D80*E52 -> 66.32
A81: E | B81: SESC/SESI (Art. 3° da Lei 8036/90) | D81: 0.015 | E81: =D81*E52 -> 39.79
A82: F | B82: SENAC/SENAI (Decreto 2.318/86) | D82: 0.01 | E82: =D82*E52 -> 26.53
A83: G | B83: SEBRAE (Art. 8° Lei 8029/90 e 8154 de 28/12/90) | D83: 0.006 | E83: =D83*E52 -> 15.92
A84: H | B84: INCRA (Lei 7787 de 30/06/890e DL 1146/70) | D84: 0.002 | E84: =D84*E52 -> 5.31
A85: TOTAL | D85: =SUM(D77:D84) -> 0.368 | E85: =SUM(E77:E84) -> 976.18
A86: Notas: - Os percentuais dos encargos previdenciários e FGTS, a serem preenchidos na coluna %, são aqueles estabelecidos pela legislação vigente.
A87: - Percentuais incidentes sobre a remuneração.
A89: GRUPO "B"
A90: B | B90: GRUPO "B" | D90: % | E90: Valor (R$)
A91: A | B91: Férias (incluindo 1/3) | D91: 0.1111 | E91: =D91*$E$52 -> 294.71
A92: B | B92: Auxílio Doença | D92: 0.0166 | E92: 44.03
A93: C | B93: Acidente de Trabalho | D93: 0.0027 | E93: 7.16
A94: D | B94: Auxílio Paternidade | D94: 0.0008 | E94: 2.12
A95: E | B95: Faltas Legais | D95: 0.0117 | E95: 31.04
A96: F | B96: Aviso Prévio Trabalhado | D96: 0.0002 | E96: 0.53
A97: G | B97: 13º Salário | D97: 0.0833 | E97: 220.96
A98: TOTAL | D98: =SUM(D91:D97) -> 0.2264 | E98: =SUM(E91:E97) -> 600.55
J99: G
A100: GRUPO "C"
A101: C | B101: GRUPO "C" | D101: % | E101: Valor (R$)
A102: A | B102: Aviso Prévio Indenizado | D102: 0.0403 | E102: =D102*$E$52 -> 106.9
A103: B | B103: Indenização Adicional | D103: 0.004 | E103: =D103*$E$52 -> 10.61
A104: C | B104: FGTS nas rescisões sem justa causa (*) | D104: 0.0284 | E104: 75.33
A105: TOTAL | D105: =SUM(D102:D104) -> 0.0727 | E105: =SUM(E102:E104) -> 192.84
A106: (*) Incl. Contribuição Social estabelecida pela LC 110/01, a qual determina o recolhimento de 10% sobre os depósitos do FGTS.
A107: GRUPO "D"
A108: D | B108: GRUPO "D" | D108: % | E108: Valor (R$)
A109: A | B109: Incidência do grupo "A" sobre o grupo "B" | D109: 0.0833 | E109: =D109*E52 -> 220.96
A110: TOTAL | D110: =SUM(D109:D109) -> 0.0833 | E110: =SUM(E109:E109) -> 220.96
A112: QUADRO-RESUMO - Módulo 4 - Encargos Sociais e Trabalhistas
A113: 4 | B113: Módulo 4 - Encargos sociais e trabalhistas | D113: % | E113: Valor (R$)
A114: 4.1 | B114: GRUPO "A" | D114: =D85 -> 0.368 | E114: =E85 -> 976.18
A115: 4.2 | B115: GRUPO "B" | D115: =D98 -> 0.2264 | E115: =E98 -> 600.55
A116: 4.3 | B116: GRUPO "C" | D116: =D105 -> 0.0727 | E116: =E105 -> 192.84
A117: 4.4 | B117: GRUPO "D" | D117: =D110 -> 0.0833 | E117: =E110 -> 220.96
A118: 4.6 | B118: Outros (especificar) | D118: - | E118: 0
A119: TOTAL | D119: =SUM(D114:D118) -> 0.7504 | E119: =SUM(E114:E118) -> 1990.53
A121: MÓDULO 5: CUSTOS INDIRETOS, TRIBUTOS E LUCRO
A122: 5 | B122: Custos Indiretos, Tributos e Lucro | D122: % | E122: Valor (R$)
A123: A | B123: Custos Indiretos | D123: 0.06 | E123: =D123*(E52+E62+E71+E119) -> 324 | J123: =D123 -> 0.06
A124: B | B124: Tributos
B125: B1. Tributos Federais (COFINS/PIS) | D125: 0.0365 | E125: =B152 -> 243.36 | J125: =E125/E142 -> 0.0451
B126: B2. Tributos Estaduais (especificar) | D126: 0 | E126: =D126*(E52+E62+E71+E119+E123+E129) -> 0
B127: B3. Tributos Municipais (ISSQN ou ISS) | D127: 0.05 | E127: =B151 -> 333.38 | J127: =E127/E142 -> 0.0617
B128: B4. Outros tributos (especificar) | F128: =SUM(D125:D128) -> 0.0865 | G128: =SUM(E142+E123+E129)/(1-F128) -> 6667.49
A129: C | B129: Lucro | D129: 0.0679 | E129: =D129*(E52+E62+E71+E119) -> 366.67 | J129: =D129 -> 0.0679
A130: TOTAL | D130: =SUM(D123:D129) -> 0.2144 | E130: =SUM(E123:E129) -> 1267.41 | J130: =J123+J125+J127+J129 -> 0.2347
A131: Notas: - Custos Indiretos, Tributos e Lucro por empregado.
A132: - O valor referente a tributos é obtido aplicando-se o percentual sobre o valor do faturamento.
A134: PORTARIA Nº 07 DE 09/03/2011 - SLTI/MPOG
A135: Quadro Resumo do Custo para dois Empregados
A137: Mão de obra vinculada à execução contratual (valor de dois empregados) | E137: Valor (R$)
A138: A | B138: Módulo 1 – Composição da Remuneração | E138: =E52 -> 2652.62
A139: B | B139: Módulo 2 – Benefícios Mensais e Diários | E139: =E62 -> 611.13
A140: C | B140: Módulo 3 – Insumos Diversos (uniformes e outros) | E140: =E71 -> 145.8
A141: D | B141: Módulo 4 – Encargos Sociais e Trabalhistas | E141: =E119 -> 1990.53
A142: Subtotal (A + B + C + D) | E142: =SUM(E138:E141) -> 5400.08
A143: E | B143: Módulo 5 – Custos indiretos, tributos e lucro | E143: =E130 -> 1267.41
A144: VALOR TOTAL DO POSTO DIURNO DE 12 HORAS (12 X 36 de Segunda a Domingo) | E144: =ROUNDDOWN(E142+E143,2) -> 6667.49
B147: =E52+E62+E71+E119 -> 5400.08 | C147: MOD1 + MOD2+MOD3+MOD4
A148: P0 | B148: =E142+E123+E129 -> 6090.75 | C148: MOD1 + MOD2+MOD3+MOD4 + CUSTOS IND + LUCRO
A149: P1 | B149: =B148/(1-0.0865) -> 6667.49
A150: P1-P0 | B150: =B149-B148 -> 576.74
A151: ISS | B151: =(B150/8.65)*5 -> 333.38 | C151: 0.05
A152: PIS/COFINS | B152: =(B150/8.65)*3.65 -> 243.36 | C152: 0.0365

Sheet Noturno
A1: Ministério da Integração Nacional - M I
A2: Companhia de Desenvolvimento dos Vales do São Francisco e do Parnaíba
A3: 3ª Superintendência Regional
A4: PLANILHA DE CUSTOS E FORMAÇÃO DE PREÇOS
A5: ANEXO II REABERTURA DO EDITAL 001/ 2014
A6: PORTARIA Nº 07 DE 09/03/2011 - SLTI/MPOG
A8: N° Processo Administrativo 59530.000420/2013-73
A9: Licitação N° 001/2014 - Pregão Eletrônico | C9: PE Nº. 001/2014
A10: Data: ______/______/_______ | C10: Hora: _____:_____ horas
A13: DISCRIMINAÇÃO DOS SERVIÇOS (dados referentes à contratação)
A14: A | B14: Data de apresentação da proposta (dia/mês/ano)
A15: B | B15: Município/UF | E15: Petrolina-PE
A16: C | B16: Ano Acordo, Convenção ou Sentença Normativa em Dissídio Coletivo | E16: 2015
A17: D | B17: Nº de meses de execução contratual | E17: 12 meses
A20: IDENTIFICAÇÃO DO SERVIÇO
A21: Tipo de serviço | C21: Unidade de Medida | D21: Quantidade total a contratar (em função da unidade de medida)
A23: Vigilância Patrimonial | C23: Posto de Trabalho | D23: 2
A29: PORTARIA Nº 07 DE 09/03/2011 - SLTI/MPOG
A30: MÃO-DE-OBRA VINCULADA À EXECUÇÃO CONTRATUAL
A32: Descrição:
A33: Prestação dos serviços de VIGILÂNCIA ARMADA, NOTURNO, utilizando 1 (um) postos de trabalho de 12 horas, composto por 2 (duas) pessoas do sexo masculino, de segunda a domingo, das 19 às 7 horas. (jornada 12x36)
A34: Dados complementares para composição dos custos referente à mão de obra
A35: 1 | B35: Prestação de serviços no prédio da CODEVASF/CS-03 e Estação de Piscicultura | D35: Jatobá/PE | E35: Petrolina/PE
A36: 2 | B36: Ano Acordo, Convenção ou Sentença Normativa em Dissídio Coletivo | D36: 2012 | E36: 2015
A37: 3 | B37: Tipo de serviço | D37: Coordenação | E37: Vigilância Patrimonial
A38: 4 | B38: Nº de meses de execução contratual | D38: 12 | E38: 12
A39: 5 | B39: Categoria profissional vinculada à execução contratual (STEALMOAIC-PE) | E39: Vigilância
A40: 6 | B40: Data-base da categoria (dia/mês/ano) | E40: 2015-01-01
A41: * Utilizada como base para o reajuste da categoria profissional previsto nos Acordos, Convenções ou Sentenças Normativas em Dissídios Coletivos.
A43: MÓDULO 1: COMPOSIÇÃO DA REMUNERAÇÃO
A44: 1 | B44: Composição da Remuneração | E44: Valor (R$)
A45: A | B45: Salário Base - CCT 2015 - cláusula 3ª | C45: 925.56 | D45: 2 | E45: =C45*D45 -> 1851.12 | I45: =(C45+C48)/220 -> 5.47
A46: B | B46: Adicional Noturno - CCT 2015 - cláusula 3ª | C46: =8*(7*4.345*1.09)/2 -> 132.61 | D46: 2 | E46: =C46*D46 -> 265.22 | I46: 8h/dia x (7dias/sem x 4,345sem/mês) = 243,32 h/mês x R$ 1,09/h = R$ 265,22 (02 vigilantes)
A47: C | B47: H. Not. Reduzida - CCT 2015 - cláusula 3ª | C47: =1*(7*4.345*5.47)/2 -> 83.19 | D47: 2 | E47: 166.38 | I47: 1h x (7dias/sem x 4,345semanas/mês) = 30,42 h/mês xR$ 5,47/h = R$ 166,37/mês (2 vigilantes)
A48: D | B48: Ad. Pericul - CCT 2015 - cláusula 3ª | C48: =30%*C45 -> 277.67 | D48: 2 | E48: 555.34
A49: E | B49: Adic. Intrajornada - CCT 2015 - cláusula 3ª | C49: =5.47*1.2*1.5*15 -> 147.69 | D49: 2 | E49: 295.38 | I49: (VALOR H.NOT + 50%) x 15 DIAS = (1 H NORMAL + 20% + 50%) x 15 dias por vigilante
A50: F | B50: Repercussão DSR s/Adic. Notur CCT 2015 | C50: =15*8*(5/25)*1.09 -> 26.16 | D50: 2 | E50: 52.32 | I50: 15dias/mês x 8horas noturnas/dia x nº dias ñ úteis/nº dias úteis x R$ 1,09/adic not hora = 15 x 8 x 5/25 x 1,09
A51: G | B51: Outros (especificar)
A52: TOTAL DA REMUNERAÇÃO | E52: =SUM(E45:E51) -> 3185.76
A54: MÓDULO 2: BENEFÍCIOS MENSAIS E DIÁRIOS
A55: 2 | B55: Benefícios Mensais e Diários | E55: Valor (R$)
A56: A | B56: Vale Transporte (Deduzido 6% parte empregado) = (R$ 3,20 (valor tarifa)*2*15 (dias trab.) - 6% do sal. Base)*2 vigilantes | E56: =(3.2*4*15)-(E45*6%) -> 80.93
A57: B | B57: Auxílio alimentação (Vales, cesta básica, etc.) CCT 2015 - cláusula 12ª, § 2° | E57: =(16 - 1)*30 -> 450
A58: C | B58: Assistência médica e familiar CCT 2015 - cláusula 14ª | E58: =34.18*2 -> 68.36 | I58: R$ 34,18 por cada empregado, por mês, tendo em vista a extensão do benefício as esposas e filhos menores
A59: D | B59: Auxílio creche | E59: 0
A60: E | B60: Seguro de vida, invalidez e funeral | E60: =((78*C45*0.0078%) + (3000*0.00955%))*2 -> 11.84 | I60: ((26 x Sal Normativo) + (52 x Sal normativo)) x 0,0078% + (3.000,00) x 0,00955% por vigilante
A61: F | B61: Outros (especificar) | E61: 0
A62: TOTAL DE BENEFÍCIOS MENSAIS E DIÁRIOS | E62: =SUM(E56:E61) -> 611.13
A63: Nota: o valor informado deverá ser o custo real do insumo (descontado o valor eventualmente pago pelo empregado).
A65: MÓDULO 3: INSUMOS DIVERSOS
A66: 3 | B66: Insumos Diversos | E66: Valor (R$)
A67: A | B67: Uniformes | D67: =[1]Plan2!$C$36 -> 28.98 | E67: =D67*2 -> 57.96
A68: B | B68: Materiais | E68: 0
A69: C | B69: Equipamentos | D69: =[1]Plan2!$H$30 -> 43.92 | E69: =D69*2 -> 87.84
A70: D | B70: Outros (especificar) | E70: 0
A71: TOTAL DE INSUMOS DIVERSOS | E71: =SUM(E67:E70) -> 145.8
A72: Nota: Valores mensais por empregado.
A74: MÓDULO 4: ENCARGOS SOCIAIS E TRABALHISTAS
A75: GRUPO "A"
A76: 4.1 | B76: GRUPO "A" | D76: % | E76: Valor (R$)
A77: A | B77: INSS (Art. 22 inciso I da Lei 8.212/91) | D77: 0.2 | E77: =D77*E52 -> 637.15
A78: B | B78: FGTS (Art. 15 da Lei 8030/90 art. 7° inciso III CF/88) | D78: 0.08 | E78: =D78*E52 -> 254.86
A79: C | B79: Seguro Acidente de Trabalho art. 22, inciso II, da Lei nº 8.212/91 | D79: 0.03 | E79: =D79*E52 -> 95.57
A80: D | B80: Salário Educação (Art. 3° inciso I Decreto 87.043/) | D80: 0.025 | E80: =D80*E52 -> 79.64
A81: E | B81: SESC/SESI (Art. 3° da Lei 8036/90) | D81: 0.015 | E81: =D81*E52 -> 47.79
A82: F | B82: SENAC/SENAI (Decreto 2.318/86) | D82: 0.01 | E82: =D82*E52 -> 31.86
A83: G | B83: SEBRAE (Art. 8° Lei 8029/90 e 8154 de 28/12/90) | D83: 0.006 | E83: =D83*E52 -> 19.11
A84: H | B84: INCRA (Lei 7787 de 30/06/890e DL 1146/70) | D84: 0.002 | E84: =D84*E52 -> 6.37
A85: TOTAL | D85: =SUM(D77:D84) -> 0.368 | E85: =SUM(E77:E84) -> 1172.35
A86: Notas: - Os percentuais dos encargos previdenciários e FGTS, a serem preenchidos na coluna %, são aqueles estabelecidos pela legislação vigente.
A87: - Percentuais incidentes sobre a remuneração.
A89: GRUPO "B"
A90: B | B90: GRUPO "B" | D90: % | E90: Valor (R$)
A91: A | B91: Férias (incluindo 1/3) | D91: 0.1111 | E91: =D91*$E$52 -> 353.94
A92: B | B92: Auxílio Doença | D92: 0.0166 | E92: 52.88
A93: C | B93: Acidente de Trabalho | D93: 0.0027 | E93: 8.6
A94: D | B94: Auxílio Paternidade | D94: 0.0008 | E94: 2.55
A95: E | B95: Faltas Legais | D95: 0.0117 | E95: 37.27
A96: F | B96: Aviso Prévio Trabalhado | D96: 0.0002 | E96: 0.64
A97: G | B97: 13º Salário | D97: 0.0833 | E97: 265.37
A98: TOTAL | D98: =SUM(D91:D97) -> 0.2264 | E98: =SUM(E91:E97) -> 721.25
A100: GRUPO "C"
A101: C | B101: GRUPO "C" | D101: % | E101: Valor (R$)
A102: A | B102: Aviso Prévio Indenizado | D102: 0.0403 | E102: =D102*$E$52 -> 128.39
A103: B | B103: Indenização Adicional | D103: 0.004 | E103: =D103*$E$52 -> 12.74
A104: C | B104: FGTS nas rescisões sem justa causa (*) | D104: 0.0284 | E104: =D104*$E$52 -> 90.48
A105: TOTAL | D105: =SUM(D102:D104) -> 0.0727 | E105: =SUM(E102:E104) -> 231.61
A106: (*) Incl. Contribuição Social estabelecida pela LC 110/01, a qual determina o recolhimento de 10% sobre os depósitos do FGTS.
A107: GRUPO "D"
A108: D | B108: GRUPO "D" | D108: % | E108: Valor (R$)
A109: A | B109: Incidência do grupo "A" sobre o grupo "B" | D109: 0.0833 | E109: =D109*E52 -> 265.37
A110: TOTAL | D110: =SUM(D109:D109) -> 0.0833 | E110: =SUM(E109:E109) -> 265.37
A112: QUADRO-RESUMO - Módulo 4 - Encargos Sociais e Trabalhistas
A113: 4 | B113: Módulo 4 - Encargos sociais e trabalhistas | D113: % | E113: Valor (R$)
A114: 4.1 | B114: GRUPO "A" | D114: =D85 -> 0.368 | E114: =E85 -> 1172.35
A115: 4.2 | B115: GRUPO "B" | D115: =D98 -> 0.2264 | E115: =E98 -> 721.25
A116: 4.3 | B116: GRUPO "C" | D116: =D105 -> 0.0727 | E116: =E105 -> 231.61
A117: 4.4 | B117: GRUPO "D" | D117: =D110 -> 0.0833 | E117: =E110 -> 265.37
A118: 4.6 | B118: Outros (especificar) | D118: - | E118: 0
A119: TOTAL | D119: =SUM(D114:D118) -> 0.7504 | E119: =SUM(E114:E118) -> 2390.58
A121: MÓDULO 5: CUSTOS INDIRETOS, TRIBUTOS E LUCRO
A122: 5 | B122: Custos Indiretos, Tributos e Lucro | D122: % | E122: Valor (R$)
A123: A | B123: Custos Indiretos | D123: 0.06 | E123: =D123*(E52+E62+E71+E119) -> 380
A124: B | B124: Tributos
B125: B1. Tributos Federais (COFINS/PIS) | D125: 0.0365 | E125: =B152 -> 285.42
B126: B2. Tributos Estaduais (especificar) | D126: 0 | E126: =D126*(E52+E62+E71+E119+E123+E129) -> 0
B127: B3. Tributos Municipais (ISSQN ou ISS) | D127: 0.05 | E127: =B151 -> 390.98
B128: B4. Outros tributos (especificar) | F128: =SUM(D125:D128) -> 0.0865 | G128: =SUM(E142+E123+E129)/(1-F128) -> 7819.7
A129: C | B129: Lucro | D129: 0.0679 | E129: =D129*(E52+E62+E71+E119) -> 430.03
A130: TOTAL | D130: =SUM(D123:D129) -> 0.2144 | E130: =SUM(E123:E129) -> 1486.43
A131: Notas: - Custos Indiretos, Tributos e Lucro por empregado.
A132: - O valor referente a tributos é obtido aplicando-se o percentual sobre o valor do faturamento.
A134: PORTARIA Nº 07 DE 09/03/2011 - SLTI/MPOG
A135: Quadro Resumo do Custo para dois Empregados
A137: Mão de obra vinculada à execução contratual (valor de quatro empregados) | E137: Valor (R$)
A138: A | B138: Módulo 1 – Composição da Remuneração | E138: =E52 -> 3185.76
A139: B | B139: Módulo 2 – Benefícios Mensais e Diários | E139: =E62 -> 611.13
A140: C | B140: Módulo 3 – Insumos Diversos (uniformes e outros) | E140: =E71 -> 145.8
A141: D | B141: Módulo 4 – Encargos Sociais e Trabalhistas | E141: =E119 -> 2390.58
A142: Subtotal (A + B + C + D) | E142: =SUM(E138:E141) -> 6333.27
A143: E | B143: Módulo 5 – Custos indiretos, tributos e lucro | E143: =E130 -> 1486.43
A144: VALOR TOTAL DO POSTO NOTURNO DE 12 HORAS (12 X 36 de Segunda a Domingo) | E144: =ROUND(E142+E143,2) -> 7819.7
B147: =E52+E62+E71+E119 -> 6333.27 | C147: MOD1 + MOD2+MOD3+MOD4
A148: P0 | B148: =E142+E123+E129 -> 7143.3 | C148: MOD1 + MOD2+MOD3+MOD4 + CUSTOS IND + LUCRO
A149: P1 | B149: =B148/(1-0.0865) -> 7819.7
A150: P1-P0 | B150: =B149-B148 -> 676.4
A151: ISS | B151: =(B150/8.65)*5 -> 390.98 | C151: 0.05
A152: PIS/COFINS | B152: =(B150/8.65)*3.65 -> 285.42 | C152: 0.0365

Sheet Quadro Resumo
A1: Ministério da Integração Nacional - M I
A2: Companhia de Desenvolvimento dos Vales do São Francisco e do Parnaíba
A3: 3ª Superintendência Regional
A4: ANEXO III DO EDITAL ..... / 2015
A5: PREGÃO ELETRÔNICO Nº .................../2015
A6: PORTARIA Nº 07 DE 09/03/2011 - SLTI/MPOG
A7: QUADRO RESUMO - VALOR MENSAL DOS SERVIÇOS
A9: Tipo de Serviço | C9: Valor proposto por empregado | D9: Quant. de empregados por posto | E9: Valor proposto por posto | F9: Quant. de postos | G9: Valor total do serviço
C10: ( A ) | D10: ( B ) | E10: ( C ) | F10: ( D ) | G10: (E = C x D)
A11: 1 | B11: Posto de Vigilância Armada, de 12 HORAS DIURNAS, de segunda a segunda, inclusive aos sábados, domingos e feriados. | C11: =E11/D11 -> 3333.75 | D11: 2 | E11: =Diurno!E144 -> 6667.49 | F11: 4 | G11: =E11*F11 -> 26669.96
A12: 2 | B12: Posto de Vigilância Armada, de 12 HORAS NOTURNAS, de segunda a segunda, inclusive aos sábados, domingos e feriados. | C12: =E12/D12 -> 3909.85 | D12: 2 | E12: =Noturno!E144 -> 7819.7 | F12: 6 | G12: =E12*F12 -> 46918.2
A13: Valor Mensal dos Serviços | G13: =SUM(G11:G12) -> 73588.16
A14: Observações:

Sheet RESUMO Geral
B1: Ministério da Integração Nacional - M I
B2: Companhia de Desenvolvimento dos Vales do São Francisco e do Parnaíba
B3: 3ª Superintendência Regional
A6: ANEXO iV DO EDITAL ..... / 2015
A7: PREGÃO ELETRÔNICO Nº ......................./2015
A9: RESUMO GERAL
A11: QUADRO RESUMO DE FORMAÇÃO DE PREÇOS
A13: DESCRIÇÃO | C13: QUANT | D13: PREÇO UNITÁRIO | E13: PREÇO MENSAL
A14: Posto de Vigilância Armada, de 12 HORAS DIURNAS, de segunda a segunda, inclusive aos sábados, domingos e feriados. | C14: 4 | D14: =Diurno!E144 -> 6667.49 | E14: =C14*D14 -> 26669.96
A15: Postos de Vigilância Armada, de 12 HORAS NOTURNAS, de segunda a segunda, inclusive aos sábados, domingos e feriados. | C15: 6 | D15: =Noturno!E144 -> 7819.7 | E15: =C15*D15 -> 46918.2
A16: TOTAL MENSAL | E16: =SUM(E14:E15) -> 73588.16
A17: TOTAL 12 MESES | E17: =SUM(E16*12) -> 883057.92
